Cogmind - Beta 16 @@@ ROGUE MODE // 2025.12.06 @ 08:53:18 Player: Dadrick Result: Destroyed by G-73 Enforcer with Phase Gun Performance ------------- Evolutions (8) 4000 Regions Visited (28) 5600 Robots Destroyed (185) 925 Value Destroyed (9950) 9950 Prototype IDs (68) 1360 Alien Tech Used (0) 0 Bonus (9729) 9729 TOTAL SCORE: 31564 Bonus ------- High Alert Combat Kills 106 Follower Combat Kills 3623 Entered Garrisons 1400 Used RIF Installer 4000 Aligned with FarCom 300 Met Data Miner 300 Cogmind --------- Core Integrity 0/1450 Matter 258/300 Energy 93/100 System Corruption 11% Temperature Cool (0) Movement Core (50) Location -2/Research Parts ------- > --- POWER (2) -------- (None) > --- PROPULSION (6) --- (None) > --- UTILITY (11) ----- Advanced Targeting Computer Advanced Targeting Computer Experimental Core Analyzer Advanced Hacking Suite > --- WEAPON (4) ------- (None) > --- INVENTORY (5) ---- Improved Medium Armor Plating Remote Datajack Advanced Remote Datajack Advanced Remote Datajack Peak State ------------ > --- POWER ------------ Micro Nuclear Core > --- PROPULSION ------- Improved Surge Thruster Improved Surge Thruster Field Propulsion Drive Impulse Thruster Field Propulsion Array > --- UTILITY ---------- Lightpack 2.0 Enhanced Optical Array Advanced Targeting Computer Experimental Core Analyzer Improved Medium Armor Plating System Shield Relay Coupler [Grunt] Relay Coupler [Sentry] > --- WEAPON ----------- Autogun Railgun Helical Railgun Remote Datajack > --- INVENTORY -------- Light Nuclear Core Light Antimatter Reactor VTOL Module VTOL Module Improved Surge Thruster Improved Surge Thruster Advanced Heat Sink Improved Sensor Array Improved Sensor Array Matter Filter Weapon Cycler Transmission Jammer Improved Medium Armor Plating Layered Light Armor Plating Graphene Brace Relay Coupler [Swarmer] Relay Coupler [Cutter] Relay Coupler [Grunt] Relay Coupler [Grunt] Relay Coupler [Brawler] Relay Coupler [Sentry] Relay Coupler [Behemoth] Heavy Phase Cannon Enhanced Nova Cannon Enhanced Nova Cannon Autogun Autogun Railgun Railgun Railgun Shock Bomb Launcher Heavy Rocket Launcher Fusion Bomb Launcher Fusion Bomb Launcher Remote Datajack Remote Datajack Advanced Remote Datajack Improved Plasma Cutter Power Maul [Rating: 143] Favorites ----------- Power Micro Nuclear Core Engine Light Ion Engine Power Core Micro Nuclear Core Reactor Micro Antimatter Reactor Propulsion Cooled VTOL Module Leg Aluminum Leg Hover Unit Antigrav System Flight Unit Cooled VTOL Module Utility Lightpack 2.0 Device Seismic Detector Storage Lightpack 2.0 Processor Enhanced Optical Array Hackware Relay Coupler [Sentry] Protection Improved Light Armor Plating Weapon Autogun Energy Gun Particle Gun Energy Cannon Heavy Phase Cannon Ballistic Gun Autogun Ballistic Cannon Advanced Assault Cannon Launcher Mini Grenade Launcher Special Weapon Remote Datajack Impact Weapon Mace Slashing Weapon Falx Special Melee Weapon Improved Datajack Build | -11 -10 -9 -9 -9 -8 -8 -8 -8 -8 -7 -7 -7 -7 -6 -6 -6 -6 -6 -6 -5 -5 -5 -4 -4 -3 -3 -3 -2 ------- Run | Yrd Mat Mat Min Exi Min Mat Gar Mat Gar Fac Gar Fac Gar Fac Gar Fac Low Low Dat Pro Fac Gar Fac Gar Res Arm Lab Res Slots Evolved 16 | . . 2 . . . 2 . . . 2 . . . 2 . . . . . . 2 . 2 . 2 . . 2 Power 1 | . . . . . . . . . . . . . . . . . . . . . . . . . . . . 1 Propulsion 4 | . . 1 . . . 1 . . . 1 . . . . . . . . . . 1 . . . . . . . Utility 9 | . . . . . . 1 . . . 1 . . . 1 . . . . . . 1 . 2 . 2 . . 1 Weapon 2 | . . 1 . . . . . . . . . . . 1 . . . . . . . . . . . . . . Parts Attached 192 | 7 6 15 1 1 . 8 1 1 3 6 8 2 8 3 8 9 1 1 . 2 8 16 11 16 10 20 . 20 Power 13 | 1 . 2 . . . . . 1 . 1 1 . 1 . . 1 . . . . 1 . . . . 2 . 2 Engine 4 | 1 . 2 . . . . . 1 . . . . . . . . . . . . . . . . . . . . Core 7 | . . . . . . . . . . 1 1 . 1 . . 1 . . . . 1 . . . . 1 . 1 Reactor 2 | . . . . . . . . . . . . . . . . . . . . . . . . . . 1 . 1 Propulsion 47 | 2 1 4 1 1 . 5 . . . . 1 . . . 1 1 . . . . 1 5 3 2 3 10 . 6 Treads . | . . . . . . . . . . . . . . . . . . . . . . . . . . . . . Leg 4 | 2 1 1 . . . . . . . . . . . . . . . . . . . . . . . . . . Wheel . | . . . . . . . . . . . . . . . . . . . . . . . . . . . . . Hover 1 | . . . . . . . . . . . . . . . . . . . . . . . . . . . . 1 Flight 42 | . . 3 1 1 . 5 . . . . 1 . . . 1 1 . . . . 1 5 3 2 3 10 . 5 Utility 77 | 2 2 3 . . . . 1 . 1 3 4 1 5 3 4 5 . 1 . 2 3 7 5 8 5 5 . 7 Device 14 | 1 1 2 . . . . . . . 2 . . . . . 1 . . . 1 . 1 . 2 1 1 . 1 Storage 3 | 1 1 . . . . . . . . . 1 . . . . . . . . . . . . . . . . . Processor 6 | . . . . . . . . . . . . . . . . 2 . . . . . . 1 1 1 . . 1 Hackware 44 | . . . . . . . . . 1 1 1 1 5 2 4 2 . 1 . 1 3 4 3 4 3 4 . 4 Protection 10 | . . 1 . . . . 1 . . . 2 . . 1 . . . . . . . 2 1 1 . . . 1 Artifact . | . . . . . . . . . . . . . . . . . . . . . . . . . . . . . Weapon 55 | 2 3 6 . . . 3 . . 2 2 2 1 2 . 3 2 1 . . . 3 4 3 6 2 3 . 5 Energy Gun 1 | . . . . . . . . . 1 . . . . . . . . . . . . . . . . . . . Energy Cannon 4 | . . 2 . . . . . . . . . . . . . . . . . . . . 1 . . 1 . . Ballistic Gun 26 | 2 2 2 . . . 2 . . . . . . 1 . 2 1 . . . . 3 1 . 6 2 2 . . Ballistic Cannon 4 | . . . . . . . . . . 1 . 1 . . . . 1 . . . . . . . . . . 1 Launcher 3 | . . 1 . . . . . . . . . . . . . 1 . . . . . . . . . . . 1 Special Weapon 9 | . 1 . . . . . . . . . 1 . 1 . 1 . . . . . . 2 1 . . . . 2 Impact Weapon 2 | . . 1 . . . . . . . . . . . . . . . . . . . 1 . . . . . . Slashing Weapon 4 | . . . . . . 1 . . . . 1 . . . . . . . . . . . 1 . . . . 1 Piercing Weapon . | . . . . . . . . . . . . . . . . . . . . . . . . . . . . . Special Melee Weapon 2 | . . . . . . . . . 1 1 . . . . . . . . . . . . . . . . . . Unidentified Prototypes 6 | . . 1 . . . 1 . . . . . . . . . . . . . . . . 2 . . . . 2 Parts Lost 58 | . 1 . . . . . . . 2 . . . . . 1 . . 1 . 1 2 7 . 5 1 17 . 20 Power 4 | . . . . . . . . . . . . . . . . . . . . . 1 1 . . . 2 . . Propulsion 26 | . . . . . . . . . . . . . . . 1 . . . . . . 5 . 2 1 10 . 7 Utility 15 | . 1 . . . . . . . 1 . . . . . . . . . . . 1 . . 1 . 2 . 9 Weapon 13 | . . . . . . . . . 1 . . . . . . . . 1 . 1 . 1 . 2 . 3 . 4 Highest Loss Streak 7 | . 1 . . . . . . . 2 . . . . . 1 . . 1 . 1 1 3 . 2 1 7 . 7 To Critical Strikes . | . . . . . . . . . . . . . . . . . . . . . . . . . . . . . Average Backups 23 | 1 8 8 5 4 3 2 3 3 2 3 7 37 36 37 34 36 37 37 36 35 30 32 38 36 38 34 30 15 Power 1 | . 1 1 1 . . . . . . 1 1 3 2 2 2 2 2 2 2 2 1 1 1 2 2 2 1 . Propulsion 3 | . 1 2 1 . . . 1 1 . . . 6 6 6 5 4 5 5 5 5 4 3 5 5 4 3 2 . Utility 10 | . 2 1 1 2 3 1 1 1 1 1 3 17 15 16 14 14 15 14 14 13 10 13 17 16 19 14 13 7 Weapon 6 | . 4 2 1 . . . 1 1 1 1 1 8 9 9 8 11 11 11 11 11 10 9 10 8 9 10 8 3 Tool/Special . | . . . . . . . . . . . . . . . . . . . . . . . . . . . . . Unused Backups 71 | . 1 8 . 1 . 2 . . 1 1 4 1 2 . 1 1 . . . . . 6 9 9 5 11 . 8 Power 8 | . . . . 1 . . . . . 1 2 . 1 . . . . . . . . 1 . 1 . 1 . . Propulsion 10 | . . 3 . . . 1 . . 1 . 1 1 1 . 1 . . . . . . 1 . . . . . . Utility 33 | . 1 2 . . . 1 . . . . 1 . . . . . . . . . . 3 6 4 4 4 . 7 Weapon 19 | . . 3 . . . . . . . . . . . . . 1 . . . . . 1 3 4 1 5 . 1 Tool/Special 1 | . . . . . . . . . . . . . . . . . . . . . . . . . . 1 . . Average Slot Usage (%) 84 | . 99 96 100 100 100 95 100 99 93 85 95 81 84 79 81 77 76 72 66 71 74 81 81 82 83 83 52 46 Engine 2 | . 14 11 11 11 11 9 9 9 9 1 . . . . . . . . . . . . . . . . . . Core 3 | . . . . . . . . . . 5 7 7 7 6 5 6 6 6 6 6 4 4 5 5 4 3 . . Leg 1 | . 28 12 . . . . . . . . . . . . . . . . . . . . . . . . . . Flight 28 | . . 20 33 33 33 32 36 36 36 30 36 35 38 33 33 28 26 26 26 26 28 28 25 25 22 24 15 11 Device 6 | . 13 11 11 11 11 17 18 18 17 12 8 . . . . 1 6 5 6 4 . . . 6 5 2 . 1 Storage 4 | . 14 4 . . . . . . . . 1 7 7 6 6 6 6 6 6 6 5 5 5 5 4 4 4 2 Processor 2 | . . . . . . . . . . . . . . . . 1 6 6 6 6 1 . 4 5 9 14 14 15 Hackware 6 | . . . . . . . . . . 10 11 7 5 5 8 4 . . . . 8 11 14 9 11 13 9 8 Protection 3 | . . 6 11 11 11 9 9 9 2 . 5 . 1 6 3 4 . . . . 4 5 5 2 4 1 . . Ballistic Gun 10 | . 27 19 21 17 11 10 18 17 11 . . . 1 6 10 7 5 . . . 7 19 14 16 16 14 . . Ballistic Cannon 1 | . . . . . . . . . . 6 6 7 5 . . . 3 5 . 5 3 . . . . . . . Special Weapon 2 | . . . . . . . . . . . . . 6 6 4 6 6 6 6 6 4 1 . 2 1 . . . Slashing Weapon 3 | . . . . . . 3 6 8 8 7 7 7 7 6 6 6 6 6 6 4 . . 3 . . . 4 3 Special Melee Weapon 1 | . . . . . . . . . . 7 6 7 . . . . . . . . . . . . . . . . Peak Build Rating 143 | 7 8 20 20 23 23 34 33 35 38 47 79 80 81 84 86 91 92 91 90 90 93 96 120 130 139 143 100 127 Average Rating 73 | 6 7 14 19 21 23 29 32 34 34 42 55 76 79 82 82 86 90 90 86 88 87 87 108 122 133 133 95 78 On Entrance 65 | . 7 8 20 20 23 23 33 33 35 36 47 79 78 80 83 82 90 91 90 90 84 89 94 120 129 138 86 100 Avg Prop Armor Cover (%) 21 | . . . . . . . . . . . . . . . . . . . . . . . . . . . . 21 Naked Turns . | . . . . . . . . . . . . . . . . . . . . . . . . . . . . . Heaviest Build 40 | 14 29 36 15 15 13 17 17 19 19 18 24 21 27 24 24 28 26 26 25 28 29 30 37 38 40 36 16 17 Greatest Support 43 | 20 20 30 15 15 15 24 20 20 20 20 28 24 24 28 28 28 28 28 28 28 35 39 41 43 40 37 20 27 Greatest Overweight (x) 2 | . 1 2 . . . . . . . . . . 1 . . . . . . . . . . . . . . 2 Average Overweight (x) . | . . . . . . . . . . . . . . . . . . . . . . . . . . . . . Largest Inventory Capacity 40 | 8 15 15 5 5 5 5 5 5 5 5 40 40 40 40 40 40 40 40 40 40 40 40 40 40 40 40 40 40 Average Capacity 27 | 7 11 8 5 5 5 5 5 5 5 5 11 40 40 40 40 40 40 40 40 40 40 40 40 40 40 40 40 23 Most Carried 40 | 3 14 14 5 5 5 5 5 5 5 5 35 39 39 38 37 38 38 38 36 36 35 40 40 40 39 40 32 32 Average Carried 24 | 1 8 8 4 4 5 4 5 5 4 4 8 37 36 37 34 36 37 36 36 35 30 32 39 37 38 35 29 15 Final Capacity 40 | 8 15 5 5 5 5 5 5 5 5 5 40 40 40 40 40 40 40 40 40 40 40 40 40 40 40 40 40 5 Final Carried 40 | 3 13 5 5 5 5 5 5 5 5 5 35 39 38 37 35 36 38 36 36 35 28 39 40 39 38 32 29 4 Class Distribution -------------------- 54% | Botlord-Sprinter 20% | Sprinter 12% | Mutant 3% | Bothacker-Sprinter Dominant Class ---------------- Mutant | -10/Materials Mutant | -9/Materials Mutant | -9/Mines Mutant | -9/Exiles Mutant | -8/Mines Sprinter | -8/Materials Sprinter | -8/Garrison Sprinter | -8/Materials Sprinter | -8/Garrison Sprinter | -7/Factory Sprinter | -7/Garrison Bothacker-Sprinter | -7/Factory Botlord-Sprinter | -7/Garrison Botlord-Sprinter | -6/Factory Botlord-Sprinter | -6/Garrison Botlord-Sprinter | -6/Factory Botlord-Sprinter | -6/Lower Caves Botlord-Sprinter | -6/Lower Caves Botlord-Sprinter | -6/Data Miner Botlord-Sprinter | -5/Proximity Caves Botlord-Sprinter | -5/Factory Botlord-Sprinter | -5/Garrison Botlord-Sprinter | -4/Factory Botlord-Sprinter | -4/Garrison Botlord-Sprinter | -3/Research Botlord-Sprinter | -3/Armory Botlord-Sprinter | -3/Lab Botlord-Sprinter | -2/Research Resources | -11 -10 -9 -9 -9 -8 -8 -8 -8 -8 -7 -7 -7 -7 -6 -6 -6 -6 -6 -6 -5 -5 -5 -4 -4 -3 -3 -3 -2 ----------- Run | Yrd Mat Mat Min Exi Min Mat Gar Mat Gar Fac Gar Fac Gar Fac Gar Fac Low Low Dat Pro Fac Gar Fac Gar Res Arm Lab Res Matter Collected 8820 | 386 297 345 . . 68 81 180 130 372 64 486 40 427 73 403 224 16 51 . 240 262 1230 275 1090 381 1268 . 431 Remotely . | . . . . . . . . . . . . . . . . . . . . . . . . . . . . . Salvage Created 7772 | 245 291 448 6 . 27 162 180 281 320 180 195 96 120 109 70 727 . . . 99 221 896 375 406 157 1467 . 694 Parts 419 | 16 25 35 3 . 3 5 6 23 12 10 19 9 8 4 1 31 . . . 8 10 33 20 22 11 79 . 26 Haulers Intercepted 16 | . . 2 . . . 2 . 2 . 2 . 1 . 1 . 4 . . . . . . . . . . . 2 Recyclers Shooed 2 | . . . . . . . . . . . . . . . . 1 . . . . . . . . . . . 1 Parts Field Recycled . | . . . . . . . . . . . . . . . . . . . . . . . . . . . . . Retrieved Matter . | . . . . . . . . . . . . . . . . . . . . . . . . . . . . . Parts Self-Destructed 17 | . . . . . . . . . . . . . . . . . 1 . . 16 . . . . . . . . Prevented 1 | . . . . . . . . . . . . . . . . . 1 . . . . . . . . . . . Parts Restored . | . . . . . . . . . . . . . . . . . . . . . . . . . . . . . Kills | -11 -10 -9 -9 -9 -8 -8 -8 -8 -8 -7 -7 -7 -7 -6 -6 -6 -6 -6 -6 -5 -5 -5 -4 -4 -3 -3 -3 -2 ------- Run | Yrd Mat Mat Min Exi Min Mat Gar Mat Gar Fac Gar Fac Gar Fac Gar Fac Low Low Dat Pro Fac Gar Fac Gar Res Arm Lab Res Combat Hostiles Destroyed 125 | . 10 12 3 . . . 4 5 11 . 13 1 5 . 1 5 . . . 5 2 16 2 4 3 20 . 3 Melee 9 | . . . . . . . 1 . 1 . 1 1 . . . . . . . . . . . . . 2 . 3 Guns 61 | . 10 . . . . . 1 3 3 . . . . . 1 1 . . . . 2 13 2 4 3 18 . . Cannons 16 | . . 4 . . . . . . . . 6 . 5 . . . . . . 1 . . . . . . . . AOE 39 | . . 8 3 . . . 2 2 7 . 6 . . . . 4 . . . 4 . 3 . . . . . . Classes Destroyed 19 | 2 2 3 . . 1 . 1 3 1 2 1 . . . . . . . . . . . . 1 . 2 . . Worker 8 | . . . . . 1 . . . . . . . . 1 . 3 . . . . 1 . 1 . . . . 1 Builder 2 | . . . . . . . . 2 . . . . . . . . . . . . . . . . . . . . Tunneler 9 | 7 . . . . . . . . . . . . . . . . . . . . 2 . . . . . . . Hauler 16 | . . 2 . . . 2 . 2 . 2 . 1 . 1 . 4 . . . . . . . . . . . 2 Recycler 7 | 1 1 1 . . . . . . . . . . . . . 1 . . . . . . 1 . . . . 2 Mechanic 1 | . . . . . . . . . . 1 . . . . . . . . . . . . . . . . . . Operator 3 | . . . . . . . . . . 1 . . . . . . . . . . 1 . 1 . . . . . Watcher 10 | . . 1 . . . 2 . 2 . . . . . . . 1 . . . . . . . . . 3 . 1 Swarmer 51 | . 6 8 3 . . . . 2 3 . 10 . 3 . . 5 . . . 4 . 3 . 2 1 1 . . Cutter 5 | . . . . . . . . 2 . . . . . . . . . . . . . . . . . . . 3 Saboteur 2 | . . . . . . . . . . . . . . . . . . . . . . . . . . 2 . . Grunt 34 | . 4 2 . . . . 2 . 6 . 1 . . . 1 1 . . . . 1 7 2 1 . 6 . . Brawler 2 | . . . . . . . . . 1 . . . . . . . . . . . . 1 . . . . . . Duelist 6 | . . . . . . . 1 . . . . . 1 . . . . . . 1 . . . . . 3 . . Sentry 11 | . . 2 . . . . 1 . 1 . . . . . . 1 . . . . . 4 1 . . 1 . . Specialist 4 | . . . . . . . . . . . . . . . . . . . . . . . . . . 4 . . Hunter 3 | . . . . . . . . 1 . . . . . . . . . . . . 1 1 . . . . . . Programmer 10 | . . . . . . . . . . . 2 1 1 . . . . . . . . . . . 2 4 . . Behemoth 1 | . . . . . . . . . . . . . . . . . . . . . . . . 1 . . . . Best Kill Streak 6 | 2 3 5 3 . 1 2 1 5 3 2 4 2 3 1 1 6 . . . 4 2 3 2 1 2 5 . 3 Combat Bots Only 4 | . 3 4 3 . . . 1 3 3 . 4 1 3 . 1 3 . . . 4 1 3 2 1 2 3 . 1 Max Kills in Single Turn 5 | 1 2 4 2 . 1 1 1 1 3 1 2 1 1 1 1 5 . . . 3 1 2 1 1 1 1 . 1 Gunslinging 1 | . . . . . . . . . . . . . . . . . . . . . . 1 . . . . . . Exploded 4 | . . 4 2 . . . 1 1 3 . 2 . . . . 2 . . . 3 . 2 . . . . . . Melee 1 | . . . . . . . 1 . 1 . 1 1 . . . . . . . . . . . . . 1 . 1 Uniques/NPCs Destroyed . | . . . . . . . . . . . . . . . . . . . . . . . . . . . . . Combat | -11 -10 -9 -9 -9 -8 -8 -8 -8 -8 -7 -7 -7 -7 -6 -6 -6 -6 -6 -6 -5 -5 -5 -4 -4 -3 -3 -3 -2 -------- Run | Yrd Mat Mat Min Exi Min Mat Gar Mat Gar Fac Gar Fac Gar Fac Gar Fac Low Low Dat Pro Fac Gar Fac Gar Res Arm Lab Res Hostile Shots Fired 868 | . 53 44 9 . 2 4 . 6 26 1 53 . 22 9 24 21 6 12 . 20 17 75 33 78 9 235 . 109 Missed 364 | . 14 19 4 . 2 1 . 3 16 1 30 . 13 5 7 10 4 4 . 6 8 22 15 38 5 110 . 27 Hits 504 | . 39 25 5 . . 3 . 3 10 . 23 . 9 4 17 11 2 8 . 14 9 53 18 40 4 125 . 82 Melee 33 | . . . . . . . . . . . . . . . . . . . . . . 1 . . . 1 . 31 Projectile 471 | . 39 25 5 . . 3 . 3 10 . 23 . 9 4 17 11 2 8 . 14 9 52 18 40 4 124 . 51 AOE 5 | . . . . . . . . 1 . . . . . . . . . . . . . 1 . . . . . 3 Critical Strikes 26 | . 1 . . . . . . . . . 1 . 1 . . 1 . . . . . 2 . 1 . 3 . 16 Actively Blocked 1 | . . . . . . . . . . . . . . . . . . . . . . . . . . . . 1 Damage Taken 10275 | . 402 301 57 . . 44 . 93 362 17 326 32 133 32 318 195 44 152 . 229 322 1057 348 803 79 2369 . 2560 Core 2531 | . 99 48 . . . . . 5 125 17 132 . 15 . 98 34 . 19 . 27 19 38 55 21 . 314 . 1465 Absorbed by Shields 128 | . . . . . . . . . . . . . . . . . . . . . . 95 33 . . . . . Redirected to Shielding 54 | . . . . . . . . . . . . . . . . . . . . . . . . . . . . 54 Regen/Repaired (Parts) 453 | . . . . . . . . . . . . 81 . . . . . . . . 46 . 326 . . . . . Core Remaining (%) 82 | 100 60 . . . 88 . . . 76 . . . 76 . . . . . . 79 . 94 . 93 . . 75 . Volleys Fired 685 | 29 35 17 3 . . . 14 7 44 . 51 . 57 5 42 14 1 9 . 21 32 86 27 81 22 84 . 4 Largest 4 | 2 2 2 1 . . . 2 2 2 . 1 . 1 1 3 2 1 1 . 1 4 4 4 4 4 4 . 2 Hottest 128 | 40 100 120 30 . . . 48 48 65 . 40 . 40 23 69 46 40 40 . 40 92 92 92 116 119 128 . 93 Shots Fired 1251 | 58 69 31 3 . . . 24 12 56 . 51 . 58 6 70 17 1 9 . 21 63 187 54 165 52 239 . 5 Gun 874 | 58 68 2 . . . . 20 10 43 . . . . 2 52 6 . . . . 48 144 36 120 42 222 . 1 Cannon 174 | . . 26 . . . . . . . . 45 . 37 . . . 1 5 . 15 8 3 13 17 . 1 . 3 Launcher 39 | . . 3 3 . . . 4 2 13 . 6 . . . . 2 . . . 3 . 3 . . . . . . Special 164 | . 1 . . . . . . . . . . . 21 4 18 9 . 4 . 3 7 37 5 28 10 16 . 1 Kinetic 984 | 58 68 2 . . . . 20 10 38 . 45 . 37 2 52 6 1 5 . 15 56 147 36 120 42 222 . 2 Thermal 65 | . 1 26 . . . . . . 5 . . . . . . . . . . . . . 13 17 . 1 . 2 Explosive 39 | . . 3 3 . . . 4 2 13 . 6 . . . . 2 . . . 3 . 3 . . . . . . Electromagnetic . | . . . . . . . . . . . . . . . . . . . . . . . . . . . . . Robot Hit Streak 30 | 7 13 13 . . . . 8 7 4 . 7 . 5 3 19 9 . 1 . 4 16 30 7 15 9 14 . 3 Robot Miss Streak 6 | 2 6 1 . . . . 4 1 5 . 4 . 3 1 4 5 . 3 . 2 2 3 6 6 4 4 . 2 Penetration Max 2 | . . . . . . . . . . . . . . . . . . . . . . . . . 1 2 . . Secondary Targets 10 | . . . . . . . . . . . . . . . . . . . . . . 5 1 . . 4 . . Max Gunslinging Chain 2 | . . . . . . . . . . . . . . . . . . . . . . 2 1 . . 1 . . Shots Hit Robots 778 | 37 42 27 . . 1 4 13 14 21 11 30 6 19 6 49 15 . 2 . 7 39 125 25 97 30 141 . 17 Core Hits 357 | 13 18 20 3 . 1 1 8 16 26 3 19 2 5 2 11 22 . . . 5 13 45 17 22 9 67 . 9 Critical Kills 4 | . . 1 . . . 1 . . . . . . . . . . . . . . . 1 . . . 1 . . Critical Parts Destroyed 5 | . . . . . . . . . . . . . . . . . . . . . 1 2 . . . 2 . . Critical Strikes 15 | . . 1 . . . 1 . . 2 . 2 1 . . . . . . . . 1 3 . . . 3 . 1 Destroy 8 | . . 1 . . . . . . . . . . . . . . . . . . 1 3 . . . 3 . . Blast 1 | . . . . . . . . . . . 1 . . . . . . . . . . . . . . . . . Smash 1 | . . . . . . 1 . . . . . . . . . . . . . . . . . . . . . . Sever 5 | . . . . . . . . . 2 . 1 1 . . . . . . . . . . . . . . . 1 Melee Attacks 392 | . . 9 . . 1 13 11 28 42 23 42 13 25 13 17 30 12 7 . 4 . 4 13 12 11 24 . 38 Impact 39 | . . 9 . . 1 10 . . . . . . . . . . . . . . . 4 . . . 9 . 6 Slashing 347 | . . . . . . 3 11 28 42 22 39 11 25 13 17 30 12 7 . 4 . . 13 12 11 15 . 32 Piercing . | . . . . . . . . . . . . . . . . . . . . . . . . . . . . . Sneak Attacks 32 | . . . . . 1 2 1 6 1 4 3 3 . 1 . 3 . . . . . . 2 . . . . 5 Combat Hostiles 5 | . . . . . . . 1 . 1 . 3 . . . . . . . . . . . . . . . . . Follow-up Attacks . | . . . . . . . . . . . . . . . . . . . . . . . . . . . . . Damage Inflicted 18934 | 393 467 901 137 . 42 194 381 628 1602 596 1208 268 307 151 521 1410 . . . 558 567 1949 547 1438 526 3214 . 929 Guns 9109 | 393 467 23 . . . . 174 92 159 . . . . . 521 14 . . . . 567 1522 365 1098 526 3166 . 22 Cannons 1835 | . . 353 . . . . . . . . 649 . 307 . . . . . . 108 . . . 340 . . . 78 Explosions 3923 | . . 434 137 . . . 135 132 1001 . 350 . . . . 857 . . . 450 . 427 . . . . . . Melee 4053 | . . 91 . . 42 194 72 404 442 596 209 268 . 151 . 539 . . . . . . 182 . . 48 . 815 Ramming 14 | . . . . . . . . . . . . . . . . . . . . . . . . . . . . 14 Kinetic 10218 | 393 467 23 . . . . 174 92 159 . 649 . 307 . 521 14 . . . 108 567 1522 365 1098 526 3166 . 67 Thermal 1253 | . . 353 . . . . . . . . . . . . . 527 . . . . . . . 340 . . . 33 Explosive 3396 | . . 434 137 . . . 135 132 1001 . 350 . . . . 330 . . . 450 . 427 . . . . . . Electromagnetic . | . . . . . . . . . . . . . . . . . . . . . . . . . . . . . Impact 417 | . . 91 . . 42 194 . . . . . . . . . . . . . . . . . . . . . 90 Slashing 3636 | . . . . . . . 72 404 442 596 209 268 . 151 . 539 . . . . . . 182 . . 48 . 725 Piercing . | . . . . . . . . . . . . . . . . . . . . . . . . . . . . . Highest Corruption 11 | . . . . . . . . . . 1 . . 2 1 1 2 2 2 2 2 . 1 1 1 . 4 4 11 Average Corruption 1 | . . . . . . . . . . 1 . . 1 1 1 1 2 2 2 2 . 1 1 1 . 2 4 4 Corruption Purged 1 | . . . . . . . . . . 1 . . . . . . . . . . . . . . . . . . Corruption Blocked . | . . . . . . . . . . . . . . . . . . . . . . . . . . . . . Effects 55 | . . . . . . . . . . 1 . . 10 3 3 4 3 3 2 1 . 1 3 11 . 5 . 5 Message Errors 17 | . . . . . . . . . . . . . 6 . 1 1 1 2 . 1 . . 1 1 . 1 . 2 Matter Fused 12 | . . . . . . . . . . 1 . . . 1 . 2 . 1 1 . . . 2 3 . 1 . . Heat Flow Errors 7 | . . . . . . . . . . . . . 2 . 1 . . . . . . 1 . 1 . 2 . . Energy Discharges 7 | . . . . . . . . . . . . . 1 . . 1 . . 1 . . . . 2 . . . 2 Data Loss (minor) 6 | . . . . . . . . . . . . . . 1 . . 1 . . . . . . 2 . 1 . 1 Data Loss (major) 2 | . . . . . . . . . . . . . . . 1 . 1 . . . . . . . . . . . Misfires 3 | . . . . . . . . . . . . . 1 1 . . . . . . . . . 1 . . . . Weapon Failures 1 | . . . . . . . . . . . . . . . . . . . . . . . . 1 . . . . Overload Shots . | . . . . . . . . . . . . . . . . . . . . . . . . . . . . . Overflow Damage 553 | . . . . . . 60 . . 41 121 2 . 6 . . 76 . . . 46 . 95 . . . . . 106 Projectiles 8 | . . . . . . . . . . . 2 . 6 . . . . . . . . . . . . . . . Explosions 177 | . . . . . . . . . . . . . . . . 36 . . . 46 . 95 . . . . . . Melee 368 | . . . . . . 60 . . 41 121 . . . . . 40 . . . . . . . . . . . 106 Knockbacks 5 | . . . . . . . . . . . 3 . . . . . . . . . . . . . . . . 2 Impact 1 | . . . . . . . . . . . . . . . . . . . . . . . . . . . . 1 Kinetic 4 | . . . . . . . . . . . 3 . . . . . . . . . . . . . . . . 1 Secondary . | . . . . . . . . . . . . . . . . . . . . . . . . . . . . . Self-Inflicted Damage 140 | . . . 13 . . . . . 35 . 37 . . . . . . . . . . 49 . . . . . 6 Shots 6 | . . . 1 . . . . . 3 . 1 . . . . . . . . . . 1 . . . . . . Rammed 2 | . . . . . . . . . . . . . . . . . . . . . . . . . . . . 2 Targets Rammed 2 | . . . . . . . . . . . . . . . . . . . . . . . . . . . . 2 Kicked . | . . . . . . . . . . . . . . . . . . . . . . . . . . . . . Crushed . | . . . . . . . . . . . . . . . . . . . . . . . . . . . . . Highest Temperature 335 | . 20 206 1 . . 11 18 20 58 . 48 1 210 23 139 9 . 1 . 4 54 201 124 299 173 335 . . Average Temperature 47 | . 7 79 1 . . 7 7 9 14 . 9 1 13 11 24 6 . 1 . 2 15 56 52 88 59 96 . . Received Heat Transfer 1449 | . 138 93 . . . 9 . 18 81 . 12 . 18 12 60 45 18 42 . 27 . 194 51 27 . 478 . 126 Effects 1 | . . . . . . . . . . . . . . . . . . . . . . . . . . 1 . . Short Circuit 1 | . . . . . . . . . . . . . . . . . . . . . . . . . . 1 . . Siege Activations . | . . . . . . . . . . . . . . . . . . . . . . . . . . . . . Martial Activations . | . . . . . . . . . . . . . . . . . . . . . . . . . . . . . Shielding Activations . | . . . . . . . . . . . . . . . . . . . . . . . . . . . . . Robots Disrupted . | . . . . . . . . . . . . . . . . . . . . . . . . . . . . . Combat Hostiles . | . . . . . . . . . . . . . . . . . . . . . . . . . . . . . Robots Corrupted 2 | . . . . . . 2 . . . . . . . . . . . . . . . . . . . . . . Combat Hostiles . | . . . . . . . . . . . . . . . . . . . . . . . . . . . . . Parts Fried 4 | . . . . . . 4 . . . . . . . . . . . . . . . . . . . . . . Impact Corruptions 3 | . . . . . . 3 . . . . . . . . . . . . . . . . . . . . . . Robots Melted . | . . . . . . . . . . . . . . . . . . . . . . . . . . . . . Combat Hostiles . | . . . . . . . . . . . . . . . . . . . . . . . . . . . . . Parts Melted 7 | . . 3 . . . . . . . . . . . . . . . . . . . 3 . 1 . . . . Heat Transferred 1497 | . . 740 . . . . . . . . . . . . . 350 . . . . . . . 370 . . . 37 Parts Sabotaged 4 | . . . . . . . . . . . . . . . . . . . . . . . . . . 4 . . Parts Stolen . | . . . . . . . . . . . . . . . . . . . . . . . . . . . . . Parts Stripped . | . . . . . . . . . . . . . . . . . . . . . . . . . . . . . Power Chain Reactions . | . . . . . . . . . . . . . . . . . . . . . . . . . . . . . Alert | -11 -10 -9 -9 -9 -8 -8 -8 -8 -8 -7 -7 -7 -7 -6 -6 -6 -6 -6 -6 -5 -5 -5 -4 -4 -3 -3 -3 -2 ------- Run | Yrd Mat Mat Min Exi Min Mat Gar Mat Gar Fac Gar Fac Gar Fac Gar Fac Low Low Dat Pro Fac Gar Fac Gar Res Arm Lab Res Maximum Alert Level 3 | . . 2 1 . . . . 1 2 1 3 2 1 . 1 1 . . . . . 2 1 1 2 1 . . Low Security (%) 62 | 100 100 62 55 . 100 100 100 94 8 . 13 74 69 100 60 78 . . . . 100 58 56 71 37 45 . 100 Level 1 23 | . . 30 44 . . . . 5 17 100 14 . 30 . 39 21 . . . . . 38 43 28 40 54 . . Level 2 10 | . . 7 . . . . . . 73 . 40 25 . . . . . . . . . 3 . . 22 . . . Level 3 2 | . . . . . . . . . . . 30 . . . . . . . . . . . . . . . . . Level 4 . | . . . . . . . . . . . . . . . . . . . . . . . . . . . . . Level 5 . | . . . . . . . . . . . . . . . . . . . . . . . . . . . . . High Security . | . . . . . . . . . . . . . . . . . . . . . . . . . . . . . Max Security . | . . . . . . . . . . . . . . . . . . . . . . . . . . . . . Peak Influence 932 | 10 90 453 248 . 5 82 181 227 634 333 932 497 268 142 372 354 . . . . 53 521 273 292 614 345 . 105 Initial 489 | . 3 18 173 . . 1 16 87 142 332 173 489 51 140 . 195 . . . . 36 2 273 116 164 189 . . Average 199 | 1 22 164 196 . . 52 106 108 458 289 552 211 122 67 162 144 . . . . 10 193 201 156 273 225 . 12 Influence Increases 8957 | 40 292 628 95 . 5 204 165 392 512 76 839 58 395 75 655 475 36 30 . 168 193 949 209 459 826 860 . 321 Destroy 0b10 Robot/C 3095 | . 200 240 60 . . . 100 100 220 . 315 15 135 . 240 105 . 15 . 120 30 405 30 150 210 360 . 45 Destroy 0b10 Robot/NC 290 | 40 5 20 . . 5 20 . 30 10 16 4 4 . 8 . 36 . . . . 16 . 12 8 20 12 . 24 Destroy Leader 448 | . 40 46 10 . . 8 . 28 10 4 24 10 24 2 16 24 . . . 16 8 32 . 8 62 62 . 14 Allied During Kill 667 | . . . . . . . 4 4 . . 23 4 8 1 110 25 . 3 . 32 6 50 . 27 246 124 . . Trap Triggered on 0b10 48 | . . . . . . . . . 48 . . . . . . . . . . . . . . . . . . . Successful Hack 315 | . 31 20 . . . 32 . 28 . 5 11 22 11 20 . 9 . . . . 5 . 59 . 14 8 . 40 Select Force Hacks 23 | . . . . . . . . . . . . . . . . . . . . . . . . . 23 . . . Disable Machine 543 | . . 15 . . . . . 30 90 36 48 . . . . 180 . . . . 48 12 . . . 60 . 24 Anti-Garrison Action 1061 | . . . . . . . . . 38 . 189 . 114 . 227 . . . . . . 190 . 190 113 . . . Destroy Structure 886 | . 1 32 25 . . 9 46 37 66 3 153 3 55 8 38 72 . . . . 20 80 48 28 78 54 . 30 Partial Spotted 390 | . . 45 . . . 45 15 105 . 12 12 . . 36 . 12 . . . . 24 . 12 12 12 48 . . Lose Combat Pursuer 1191 | . 15 210 . . . 90 . 30 30 . 60 . 48 . 24 12 36 12 . . 36 180 48 36 48 132 . 144 Influence Decreases 8880 | 35 252 228 362 178 . 184 9 354 97 462 155 916 201 343 283 533 247 133 . 110 247 432 564 333 756 945 277 244 Entered New Map 2849 | . 2 27 272 178 . 4 9 94 77 302 75 443 23 128 . 177 117 21 . . 22 2 248 50 128 173 277 . Time Decay 3448 | 35 250 191 90 . . 180 . 230 . 160 . 198 . 215 . 356 130 102 . 100 133 . 286 . 318 342 . 132 Lost Part 471 | . . . . . . . . . 20 . . . . . 10 . . 10 . 10 12 70 . 50 10 170 . 109 Lost Ally 1687 | . . 10 . . . . . 30 . . 80 . 178 . 273 . . . . . 80 360 30 233 150 260 . 3 Purge Threat 425 | . . . . . . . . . . . . 275 . . . . . . . . . . . . 150 . . . Squads Dispatched 49 | . 3 1 . . . 2 . 3 . 1 . 2 . 2 . 5 . . . . 5 . 5 . 6 10 . 4 Investigation 13 | . 3 . . . . . . 1 . . . 1 . 1 . 2 . . . . 1 . . . 1 3 . . Extermination 13 | . . . . . . . . . . . . 1 . 1 . 3 . . . . 1 . 2 . 1 2 . 2 Reinforcement 19 | . . 1 . . . 2 . 2 . 1 . . . . . . . . . . 3 . 3 . . 5 . 2 Assault 2 | . . . . . . . . . . . . . . . . . . . . . . . . . 2 . . . Garrison 2 | . . . . . . . . . . . . . . . . . . . . . . . . . 2 . . . Intercept . | . . . . . . . . . . . . . . . . . . . . . . . . . . . . . Searches Triggered . | . . . . . . . . . . . . . . . . . . . . . . . . . . . . . Data Miner Redirects 3 | . . . . . . . . . . . . . . . . . . . . . 1 . . . . 2 . . Construction Impeded 2 | . . . . . . . . . . . . . . . . . . . . . 1 . . . . . . 1 Haulers Reinforced . | . . . . . . . . . . . . . . . . . . . . . . . . . . . . . Active Scanning Responses . | . . . . . . . . . . . . . . . . . . . . . . . . . . . . . Cargo Convoy Interrupts . | . . . . . . . . . . . . . . . . . . . . . . . . . . . . . Alert ID Control Effect 39 | . . . . . . . . . . . . . 2 . 7 2 . . . 2 2 2 . 7 6 8 . 1 Stealth | -11 -10 -9 -9 -9 -8 -8 -8 -8 -8 -7 -7 -7 -7 -6 -6 -6 -6 -6 -6 -5 -5 -5 -4 -4 -3 -3 -3 -2 --------- Run | Yrd Mat Mat Min Exi Min Mat Gar Mat Gar Fac Gar Fac Gar Fac Gar Fac Low Low Dat Pro Fac Gar Fac Gar Res Arm Lab Res Distress Signals 14 | . . 3 . . . 2 . 2 . . . . . . . . . . . . 1 . . . 2 3 . 1 Communications Jammed 2 | . . . . . . . . . . . . . . . . . . . . . . . . . . . . 2 Distress Signals 2 | . . . . . . . . . . . . . . . . . . . . . . . . . . . . 2 Times Spotted 464 | . 15 28 3 . 3 9 3 12 14 6 18 4 25 2 33 20 9 4 . 10 15 51 17 27 28 75 . 33 Peak Tracking Total 16 | . 3 9 3 . 3 7 2 5 5 2 3 1 9 1 8 4 7 4 . 5 5 13 5 5 5 16 . 16 Tactical Retreats 49 | . 1 5 . . . 3 . 3 3 . 3 . 1 . 1 1 2 1 . . 1 5 2 3 2 8 . 4 ECM-based Alert Blocks 5 | . . . . . . . . 2 3 . . . . . . . . . . . . . . . . . . . Traps | -11 -10 -9 -9 -9 -8 -8 -8 -8 -8 -7 -7 -7 -7 -6 -6 -6 -6 -6 -6 -5 -5 -5 -4 -4 -3 -3 -3 -2 ------- Run | Yrd Mat Mat Min Exi Min Mat Gar Mat Gar Fac Gar Fac Gar Fac Gar Fac Low Low Dat Pro Fac Gar Fac Gar Res Arm Lab Res Traps Triggered 57 | . 1 . . . . . 4 2 4 2 6 . 4 1 9 7 . . . . 1 5 2 4 2 1 . 2 Indirectly . | . . . . . . . . . . . . . . . . . . . . . . . . . . . . . Trap Hack Attempts 37 | . . . . . . . . . 37 . . . . . . . . . . . . . . . . . . . Triggered 1 | . . . . . . . . . 1 . . . . . . . . . . . . . . . . . . . Disarmed . | . . . . . . . . . . . . . . . . . . . . . . . . . . . . . Reprogrammed 1 | . . . . . . . . . 1 . . . . . . . . . . . . . . . . . . . Reused 5 | . . . . . . . . . 5 . . . . . . . . . . . . . . . . . . . Traps Extracted . | . . . . . . . . . . . . . . . . . . . . . . . . . . . . . Installed 5 | . . . . . . . . . 5 . . . . . . . . . . . . . . . . . . . Triggered 5 | . . . . . . . . . 5 . . . . . . . . . . . . . . . . . . . Most Traps Carried 1 | . . . . . . . . . 1 . . . . . . . . . . . . . . . . . . . Machines | -11 -10 -9 -9 -9 -8 -8 -8 -8 -8 -7 -7 -7 -7 -6 -6 -6 -6 -6 -6 -5 -5 -5 -4 -4 -3 -3 -3 -2 ---------- Run | Yrd Mat Mat Min Exi Min Mat Gar Mat Gar Fac Gar Fac Gar Fac Gar Fac Low Low Dat Pro Fac Gar Fac Gar Res Arm Lab Res Machines Disabled 62 | . . 1 . . . . . 2 7 3 7 . 2 . 3 15 . . . . 4 5 . 5 1 5 . 2 Max in Single Turn 10 | . . 1 . . . . . . 1 1 1 . 1 . 1 10 . . . . . 1 . 1 . 1 . 1 Garrison Access 3 | . . . . . . . . . . . . . . . . 1 . . . . . . . . 2 . . . Garrison Relay 18 | . . . . . . . . . 1 . 3 . 2 . 3 . . . . . . 4 . 5 . . . . Phase Generator 1 | . . . . . . . . . . . . . . . . . . . . . . . . 1 . . . . Machines Repaired . | . . . . . . . . . . . . . . . . . . . . . . . . . . . . . Machines Dismantled 1 | . . . . . . . . . . . 1 . . . . . . . . . . . . . . . . . Machines Sabotaged . | . . . . . . . . . . . . . . . . . . . . . . . . . . . . . Overloaded Fab Kills . | . . . . . . . . . . . . . . . . . . . . . . . . . . . . . Hacking | -11 -10 -9 -9 -9 -8 -8 -8 -8 -8 -7 -7 -7 -7 -6 -6 -6 -6 -6 -6 -5 -5 -5 -4 -4 -3 -3 -3 -2 --------- Run | Yrd Mat Mat Min Exi Min Mat Gar Mat Gar Fac Gar Fac Gar Fac Gar Fac Low Low Dat Pro Fac Gar Fac Gar Res Arm Lab Res Machines Accessed 122 | . 9 8 1 1 . 10 3 7 2 9 2 6 3 6 1 11 2 . 4 1 7 1 8 2 7 6 . 5 Terminals 79 | . 7 5 . . . 8 3 5 2 6 2 3 3 2 1 6 1 . . 1 4 1 5 2 4 5 . 3 Fabricators 4 | . . . . . . . . . . . . . . 1 . 1 . . . . . . 1 . . 1 . . Repair Stations 3 | . . . . . . . . . . . . 1 . . . . . . . . 1 . 1 . . . . . Recycling Units 10 | . 2 2 . . . . . 1 . 1 . 1 . 1 . 2 . . . . . . . . . . . . Scanalyzers 8 | . . 1 . . . 1 . . . 1 . . . 1 . 1 . . . . 1 . . . 1 . . 1 Garrison Access 11 | . . . . . . 1 . 1 . 1 . 1 . 1 . 1 . . . . 1 . 1 . 2 . . 1 Total Hacks 320 | . 25 21 1 1 . 30 4 18 4 23 4 17 4 16 3 22 2 . 31 1 19 2 19 4 20 15 . 14 Successful 169 | . 11 11 1 1 . 22 3 12 . 8 1 11 1 5 . 8 2 . 31 1 8 . 12 1 8 3 . 8 Failed 150 | . 14 9 . . . 8 1 6 4 15 3 6 3 11 3 14 . . . . 11 2 7 3 12 12 . 6 Catastrophic 32 | . 1 . . . . 1 . 2 1 3 2 2 2 1 1 6 . . . . 1 1 3 . . 3 . 2 Database Lockouts 1 | . . 1 . . . . . . . . . . . . . . . . . . . . . . . . . . Manual 111 | . 14 7 . 1 . 16 . 13 . 18 . 6 . 4 . 2 . . . . 4 . 6 . 12 2 . 6 Terminals 212 | . 20 16 . . . 22 4 15 4 20 4 10 4 6 3 13 1 . . 1 11 2 13 4 16 13 . 10 Fabricators 10 | . . . . . . . . . . . . . . 5 . 2 . . . . . . 1 . . 2 . . Repair Stations 13 | . . . . . . . . . . . . 4 . . . . . . . . 5 . 4 . . . . . Recycling Units 17 | . 5 2 . . . . . 2 . 1 . 2 . 2 . 3 . . . . . . . . . . . . Scanalyzers 20 | . . 3 . . . 6 . . . 1 . . . 2 . 2 . . . . 2 . . . 1 . . 3 Garrison Access 14 | . . . . . . 2 . 1 . 1 . 1 . 1 . 2 . . . . 1 . 1 . 3 . . 1 Terminal Hacks 84 | . 7 4 1 1 . 7 3 4 . 2 1 2 1 . . 1 2 . 31 1 2 . 6 1 2 3 . 2 Record 15 | . . . . . . . . . . . . . . . . . 1 . 11 1 1 . 1 . . . . . Part Schematic 11 | . . . . . . . . . . . . . . . . 1 . . 10 . . . . . . . . . Robot Schematic 7 | . . . . . . . . . . . . . . . . . . . 7 . . . . . . . . . Robot Analysis 1 | . . 1 . . . . . . . . . . . . . . . . . . . . . . . . . . Prototype ID Bank 13 | . 1 1 . . . 3 . 1 . . . 1 . . . . . . 3 . . . 2 . . 1 . . Open Door 3 | . . . 1 . . . 1 . . . . . . . . . 1 . . . . . . . . . . . Branch Access Points 1 | . . 1 . . . . . . . . . . . . . . . . . . . . . . . . . . Emergency Access Points 3 | . . . . . . . 1 . . . 1 . . . . . . . . . . . . 1 . . . . Terminal Index 2 | . . . . . . . . . . 1 . . . . . . . . . . . . . . . . . 1 Locate Traps 8 | . 3 1 . . . . . . . . . . . . . . . . . . 1 . 1 . 1 1 . . Dispatch Records 1 | . . . . . . 1 . . . . . . . . . . . . . . . . . . . . . . Hauler Manifests 2 | . 1 . . . . 1 . . . . . . . . . . . . . . . . . . . . . . Registered Components 8 | . . . . . . 1 . 2 . 1 . 1 . . . . . . . . . . 1 . 1 . . 1 Registered Prototypes 1 | . . . . . . . . . . . . . . . . . . . . . . . 1 . . . . . Zone Layout 5 | . 2 . . . . 1 . 1 . . . . . . . . . . . . . . . . . 1 . . Garrison Registry 2 | . . . . . . . 1 . . . . . 1 . . . . . . . . . . . . . . . Proto ID Catalog 1 | . . . . 1 . . . . . . . . . . . . . . . . . . . . . . . . Fabricator Hacks 3 | . . . . . . . . . . . . . . 1 . 2 . . . . . . . . . . . . Load Schematic 2 | . . . . . . . . . . . . . . 1 . 1 . . . . . . . . . . . . Build 1 | . . . . . . . . . . . . . . . . 1 . . . . . . . . . . . . Repair Station Hacks 9 | . . . . . . . . . . . . 4 . . . . . . . . 2 . 3 . . . . . Scan Component 5 | . . . . . . . . . . . . 2 . . . . . . . . 1 . 2 . . . . . Repair 4 | . . . . . . . . . . . . 2 . . . . . . . . 1 . 1 . . . . . Recycling Unit Hacks 8 | . 1 2 . . . . . 1 . 1 . 2 . . . 1 . . . . . . . . . . . . Report Inventory 1 | . . . . . . . . . . . . 1 . . . . . . . . . . . . . . . . Retrieve Components 7 | . 1 2 . . . . . 1 . 1 . 1 . . . 1 . . . . . . . . . . . . Scanalyzer 14 | . . 2 . . . 5 . . . 1 . . . 1 . 2 . . . . 1 . . . . . . 2 Insert Component 3 | . . . . . . 2 . . . . . . . . . . . . . . . . . . . . . 1 Analyze 3 | . . . . . . 3 . . . . . . . . . . . . . . . . . . . . . . Retrieve Study 8 | . . 2 . . . . . . . 1 . . . 1 . 2 . . . . 1 . . . . . . 1 Garrison Access Hacks 12 | . . . . . . 1 . 1 . 1 . 1 . 1 . 2 . . . . 1 . 1 . 2 . . 1 Unlock Access 7 | . . . . . . 1 . 1 . 1 . 1 . 1 . . . . . . 1 . 1 . . . . . Seal Access 2 | . . . . . . . . . . . . . . . . 1 . . . . . . . . 1 . . . Coupler Status 3 | . . . . . . . . . . . . . . . . 1 . . . . . . . . 1 . . 1 Unauthorized Hacks 39 | . 3 3 . . . 9 . 6 . 3 . 2 . 2 . . . . . . 2 . 2 . 4 . . 3 Terminals 36 | . 3 3 . . . 9 . 5 . 3 . 2 . 1 . . . . . . 2 . 2 . 3 . . 3 Assimilate 9 | . . 1 . . . 1 . 2 . 1 . 1 . 1 . . . . . . . . . . 1 . . 1 Botnet 21 | . 2 2 . . . 3 . 3 . 2 . 1 . . . . . . . . 2 . 2 . 2 . . 2 Operators 1 | . 1 . . . . . . . . . . . . . . . . . . . . . . . . . . . Skim 5 | . . . . . . 5 . . . . . . . . . . . . . . . . . . . . . . Fabricators 1 | . . . . . . . . . . . . . . 1 . . . . . . . . . . . . . . Liberate 1 | . . . . . . . . . . . . . . 1 . . . . . . . . . . . . . . Repair Stations . | . . . . . . . . . . . . . . . . . . . . . . . . . . . . . Recycling Units 1 | . . . . . . . . 1 . . . . . . . . . . . . . . . . . . . . Mask 1 | . . . . . . . . 1 . . . . . . . . . . . . . . . . . . . . Scanalyzers . | . . . . . . . . . . . . . . . . . . . . . . . . . . . . . Garrison Access 1 | . . . . . . . . . . . . . . . . . . . . . . . . . 1 . . . Eject 1 | . . . . . . . . . . . . . . . . . . . . . . . . . 1 . . . Data Cores Recovered 2 | . . . . . . . . . . . . . . . . . . . . . 1 . 1 . . . . . Used 1 | . . . . . . . . . . . . . . . . . . . . . 1 . . . . . . . Hacking Detections 91 | . 8 5 . . . 7 3 5 2 7 1 3 3 6 1 11 1 . . . 6 1 5 2 5 6 . 3 Full Trace Events 14 | . 2 . . . . . . 1 . . . 1 1 1 1 2 . . . . 1 1 . . . 3 . . Feedback Events 2 | . . . . . . . . . . . . . . 1 . . . . . . . . . . . 1 . . Corruption 2 | . . . . . . . . . . . . . . 1 . . . . . . . . . . . 1 . . Feedback Blocked . | . . . . . . . . . . . . . . . . . . . . . . . . . . . . . Robot Schematics Acquired 7 | . . . . . . . . . . . . . . . . . . . 7 . . . . . . . . . Robots Built . | . . . . . . . . . . . . . . . . . . . . . . . . . . . . . Authchips . | . . . . . . . . . . . . . . . . . . . . . . . . . . . . . Time . | . . . . . . . . . . . . . . . . . . . . . . . . . . . . . Total Robot Build Rating . | . . . . . . . . . . . . . . . . . . . . . . . . . . . . . Part Schematics Acquired 12 | . . . . . . 1 . . . . . . . . . 1 . . 10 . . . . . . . . . Parts Built 1 | . . . . . . . . . . . . . . . . 1 . . . . . . . . . . . . Authchips . | . . . . . . . . . . . . . . . . . . . . . . . . . . . . . Time 106 | . . . . . . . . . . . . . . . . 106 . . . . . . . . . . . . Total Part Build Rating 6 | . . . . . . . . . . . . . . . . 6 . . . . . . . . . . . . Part Studies Acquired 8 | . . 2 . . . . . . . 1 . . . 1 . 2 . . . . 1 . . . . . . 1 Parts Repaired 4 | . . . . . . . . . . . . 2 . . . . . . . . 1 . 1 . . . . . Time 278 | . . . . . . . . . . . . 130 . . . . . . . . 70 . 78 . . . . . Parts Recycled . | . . . . . . . . . . . . . . . . . . . . . . . . . . . . . Recycled Matter . | . . . . . . . . . . . . . . . . . . . . . . . . . . . . . Retrieved Matter . | . . . . . . . . . . . . . . . . . . . . . . . . . . . . . Retrieved Components 22 | . . 7 . . . . . 9 . 1 . 2 . . . 3 . . . . . . . . . . . . Parts Scanalyzed 1 | . . . . . . 1 . . . . . . . . . . . . . . . . . . . . . . Part Schematics Acquired 1 | . . . . . . 1 . . . . . . . . . . . . . . . . . . . . . . Parts Damaged . | . . . . . . . . . . . . . . . . . . . . . . . . . . . . . Bothacking | -11 -10 -9 -9 -9 -8 -8 -8 -8 -8 -7 -7 -7 -7 -6 -6 -6 -6 -6 -6 -5 -5 -5 -4 -4 -3 -3 -3 -2 ------------ Run | Yrd Mat Mat Min Exi Min Mat Gar Mat Gar Fac Gar Fac Gar Fac Gar Fac Low Low Dat Pro Fac Gar Fac Gar Res Arm Lab Res Used RIF Installer 8 | . . . . . . . 1 . 1 . 1 . 1 . 2 . . . . . . 1 . 1 . . . . Hotswap 1 | . . . . . . . . . . . . . . . 1 . . . . . . . . . . . . . Command Fork 1 | . . . . . . . . . . . . . . . . . . . . . . 1 . . . . . . Threat Obfuscator 1 | . . . . . . . . . 1 . . . . . . . . . . . . . . . . . . . Zone Cloak 1 | . . . . . . . . . . . . . . . . . . . . . . . . 1 . . . . Robot Detection 1 | . . . . . . . . . . . . . . . 1 . . . . . . . . . . . . . Patrol Navigation 1 | . . . . . . . . . . . 1 . . . . . . . . . . . . . . . . . Alert ID Control 1 | . . . . . . . . . . . . . 1 . . . . . . . . . . . . . . . Robots Hacked 87 | . . . . . . . . . . . 3 1 12 2 6 6 . 3 . 2 5 12 3 16 8 7 . 1 Non-combat 5 | . . . . . . . . . . . . 1 . . . . . . . . 2 . 1 . 1 . . . Combat 82 | . . . . . . . . . . . 3 . 12 2 6 6 . 3 . 2 3 12 2 16 7 7 . 1 Robot Hacks Applied 91 | . . . . . . . . . . . 3 2 13 2 7 6 . 3 . 2 5 12 3 17 8 7 . 1 parse_system 5 | . . . . . . . . . . . . . . . . . . . . . 1 1 . 3 . . . . drop_inventory 1 | . . . . . . . . . . . . . . . . . . . . . 1 . . . . . . . purge_threat 3 | . . . . . . . . . . . . 2 . . . . . . . . . . . . 1 . . . spike_heat 3 | . . . . . . . . . . . . . . . 1 . . 1 . . . . . 1 . . . . overload_power 2 | . . . . . . . . . . . . . 1 . . 1 . . . . . . . . . . . . disable_weapons 3 | . . . . . . . . . . . . . 1 . . 1 . . . . . 1 . . . . . . overwrite_iff 21 | . . . . . . . . . . . . . 3 . 3 2 . . . 2 . 4 1 2 2 1 . 1 formatsys_low 1 | . . . . . . . . . . . . . . . . . . . . . . . 1 . . . . . formatsys_high 51 | . . . . . . . . . . . 3 . 8 2 3 2 . 2 . . 3 6 1 10 5 6 . . formatsys_deep 1 | . . . . . . . . . . . . . . . . . . . . . . . . 1 . . . . Relay Couplers Released 73 | . . . . . . . . . 3 . 12 . 6 . 12 . . . . . . 16 . 20 4 . . . Ejected 4 | . . . . . . . . . . . . . . . . . . . . . . . . . 4 . . . Machine Destruction 69 | . . . . . . . . . 3 . 12 . 6 . 12 . . . . . . 16 . 20 . . . . Attached 39 | . . . . . . . . . 1 . 1 1 5 2 4 2 . 1 . 1 3 4 2 4 2 3 . 3 Fabnet Peak Effective % . | . . . . . . . . . . . . . . . . . . . . . . . . . . . . . Robots Rewired 19 | . . . . . . . . . . . . . . 1 6 . . . . . 1 9 . 2 . . . . Allies Hacked 4 | . . . . . . . . . . . 1 . . . . . . . . . 1 . . . . 2 . . Hacks Repelled . | . . . . . . . . . . . . . . . . . . . . . . . . . . . . . Allies | -11 -10 -9 -9 -9 -8 -8 -8 -8 -8 -7 -7 -7 -7 -6 -6 -6 -6 -6 -6 -5 -5 -5 -4 -4 -3 -3 -3 -2 -------- Run | Yrd Mat Mat Min Exi Min Mat Gar Mat Gar Fac Gar Fac Gar Fac Gar Fac Low Low Dat Pro Fac Gar Fac Gar Res Arm Lab Res Total Allies 114 | . . 1 . . . . 1 1 . 1 6 . 11 3 12 4 . 2 . 2 4 21 3 21 9 10 . 2 Largest Group 14 | . . 1 . . . . 1 1 . 1 3 3 6 7 14 3 . 2 2 4 3 4 2 7 10 7 . 1 Highest-Rated Group 577 | . . 10 . . . . 31 31 . 10 166 80 112 169 397 73 . 76 76 158 125 160 63 459 577 366 . 148 Highest-Rated Ally 148 | . . 10 . . . . 31 31 . 10 95 39 39 32 41 32 . 47 47 47 49 85 49 119 119 64 . 148 Total Orders 33 | . . . . . . . . . . . 8 . 8 4 . . . . . . . 2 2 6 3 . . . STAY 17 | . . . . . . . . . . . 6 . 4 2 . . . . . . . 1 . 3 1 . . . FOLLOW 13 | . . . . . . . . . . . 2 . 4 2 . . . . . . . 1 . 3 1 . . . AID 3 | . . . . . . . . . . . . . . . . . . . . . . . 2 . 1 . . . Ally Attacks 592 | . . . . . . . 6 6 . . 34 . 33 1 121 13 . 5 . 24 26 77 1 47 93 96 . 9 Total Damage 16004 | . . . . . . . 123 20 . . 1081 . 463 43 3228 227 . 98 . 650 804 2055 46 1160 3234 2637 . 135 Kills 115 | . . . . . . . 1 . . . 9 . 6 . 24 4 . 1 . 5 2 13 . 13 24 12 . 1 Allies Corrupted 2 | . . . . . . . . . . . . . . . . . . . . . . . . . 1 1 . . Allies Melted 1 | . . . . . . . . . . . . . . . 1 . . . . . . . . . . . . . Intel | -11 -10 -9 -9 -9 -8 -8 -8 -8 -8 -7 -7 -7 -7 -6 -6 -6 -6 -6 -6 -5 -5 -5 -4 -4 -3 -3 -3 -2 ------- Run | Yrd Mat Mat Min Exi Min Mat Gar Mat Gar Fac Gar Fac Gar Fac Gar Fac Low Low Dat Pro Fac Gar Fac Gar Res Arm Lab Res Active Infowar (turns) 7921 | 192 683 189 190 79 19 369 359 486 844 . . . . . . 148 275 221 30 196 1 . 528 1165 714 768 22 443 Optics 3640 | . . . . . . . . . . . . . . . . . . . . . . . 528 1165 714 768 22 443 Sensors 871 | . . . . . . . . . . . . . . . . 148 275 221 30 196 1 . . . . . . . Seismic 3409 | 192 683 188 190 79 19 369 359 486 844 . . . . . . . . . . . . . . . . . . . Jamming 149 | . . . . . . . . . . . . . . . . . . . . . . . . . . . . 149 ECM 270 | . . 1 . . . 1 . 62 206 . . . . . . . . . . . . . . . . . . . Robot Analysis Total 1 | . . 1 . . . . . . . . . . . . . . . . . . . . . . . . . . Derelict Logs Recovered 5 | . . . 3 . . . . . . . . . . . . . . 1 . 1 . . . . . . . . Drone Launches . | . . . . . . . . . . . . . . . . . . . . . . . . . . . . . Drone Recoveries . | . . . . . . . . . . . . . . . . . . . . . . . . . . . . . Exploration | -11 -10 -9 -9 -9 -8 -8 -8 -8 -8 -7 -7 -7 -7 -6 -6 -6 -6 -6 -6 -5 -5 -5 -4 -4 -3 -3 -3 -2 ------------- Run | Yrd Mat Mat Min Exi Min Mat Gar Mat Gar Fac Gar Fac Gar Fac Gar Fac Low Low Dat Pro Fac Gar Fac Gar Res Arm Lab Res Turns Passed 14401 | 238 784 428 190 79 19 372 359 486 864 333 1233 411 884 518 582 801 275 231 30 246 484 766 639 1165 714 768 22 480 Spaces Moved 21698 | 102 424 648 517 217 34 775 430 766 1154 909 1842 553 1309 830 745 1806 660 346 90 256 661 1112 1018 1521 1194 1045 18 716 Core 131 | 6 . . . . . . . . . . . . . . . . . . . . . . . . . . . 125 Treads . | . . . . . . . . . . . . . . . . . . . . . . . . . . . . . Legs 581 | 96 424 61 . . . . . . . . . . . . . . . . . . . . . . . . . . Wheels . | . . . . . . . . . . . . . . . . . . . . . . . . . . . . . Hover . | . . . . . . . . . . . . . . . . . . . . . . . . . . . . . Flight 20986 | . . 587 517 217 34 775 430 766 1154 909 1842 553 1309 830 745 1806 660 346 90 256 661 1112 1018 1521 1194 1045 18 591 Fastest Speed 14 | 50 120 34 34 34 34 20 26 26 26 26 17 23 23 17 17 23 27 27 27 27 24 17 22 25 25 14 26 19 Average Speed 28 | 115 150 44 34 34 34 28 26 26 26 26 23 23 23 22 22 25 27 27 27 27 24 23 25 28 26 22 33 29 Slowest Speed 200 | 120 190 200 34 34 34 34 26 26 26 26 26 23 93 23 23 27 27 27 27 27 24 27 29 33 28 34 34 150 Overloaded Moves 155 | . . . . . . 3 . . . . 14 . . 1 29 . . . . . . 39 3 65 . 1 . . Propulsion Burnouts 1 | . . . . . . . . . . . . . . . . . . . . . . 1 . . . . . . Robots Hopped 51 | . . 2 2 . . 4 . 3 . 2 . 2 . 6 2 4 . . . . 3 1 2 1 5 9 . 3 Potential Cave-ins . | . . . . . . . . . . . . . . . . . . . . . . . . . . . . . Cave-ins Triggered . | . . . . . . . . . . . . . . . . . . . . . . . . . . . . . Exploration Rate (%) 49 | 6 77 75 82 62 16 55 40 55 58 22 89 14 72 15 73 43 79 56 68 47 17 75 28 95 25 64 6 23 Regions Visited 28 Branch Regions 9 Pre-discovered Areas 1 | . . . . . . . . . . . . . . . . . . . 1 . . . . . . . . . Known Exits Taken 13 | . . 1 . . . 1 . 1 . 1 . 1 . 1 . 1 1 1 1 1 1 . 1 . . . . . Unknown Exits Taken 8 | 1 1 . 1 1 1 . . . . . . . . . . . . . . . . . . . 1 1 1 . Scrap Searched 7 | . . . . . 1 . . . . . . . . . . . 3 2 . 1 . . . . . . . . Spaces Dug 228 | . 1 5 . . . 9 4 22 14 3 11 3 15 8 6 15 13 12 . 9 6 . 20 14 11 22 . 5 Terrain Destroyed 564 | . 1 29 32 . . 9 17 41 69 3 64 3 15 8 6 88 13 12 . 24 7 34 24 15 14 31 . 5 Melee 197 | . . 5 . . . 9 4 22 14 3 11 3 15 8 6 15 12 7 . 4 . . 11 12 11 20 . 5 Projectile 50 | . 1 . . . . . . . . . 1 . . . . . 1 5 . 5 7 . 13 3 3 11 . . AOE 317 | . . 24 32 . . . 13 19 55 . 52 . . . . 73 . . . 15 . 34 . . . . . . Terrain Rammed . | . . . . . . . . . . . . . . . . . . . . . . . . . . . . . Walls Destroyed . | . . . . . . . . . . . . . . . . . . . . . . . . . . . . . Machines Disabled . | . . . . . . . . . . . . . . . . . . . . . . . . . . . . . Actions | -11 -10 -9 -9 -9 -8 -8 -8 -8 -8 -7 -7 -7 -7 -6 -6 -6 -6 -6 -6 -5 -5 -5 -4 -4 -3 -3 -3 -2 --------- Run | Yrd Mat Mat Min Exi Min Mat Gar Mat Gar Fac Gar Fac Gar Fac Gar Fac Low Low Dat Pro Fac Gar Fac Gar Res Arm Lab Res Total 28171 | 166 509 740 524 222 39 899 638 994 1605 969 2518 810 1789 1121 1076 2074 731 461 94 401 939 1503 1340 2144 1536 1387 33 909 Wait 4140 | 26 29 21 2 . 5 92 121 190 251 26 471 238 319 260 96 113 56 96 3 115 232 203 228 425 254 166 13 89 Move 21567 | 101 423 643 512 216 33 766 428 759 1152 904 1840 548 1307 818 739 1797 659 345 89 255 654 1108 1014 1518 1183 1028 17 711 Hop 48 | . . 2 2 . . 4 . 3 . 2 . 2 . 6 2 4 . . . . 3 1 2 1 5 7 . 2 Pick Up 211 | 3 11 9 1 1 . 3 . . 7 1 38 5 7 . 5 7 1 . . . 1 34 15 27 8 17 . 10 Fast Attach 111 | 7 . 11 . . . 8 . 4 4 6 6 2 2 . . 5 . . 1 . 1 3 8 3 7 13 . 20 Attach 79 | . 1 4 . 1 . 2 . . . . 2 . 2 2 4 3 . 2 . . 8 7 3 7 1 17 3 10 Detach 29 | . . 1 . . . 2 . . 1 . 1 . 1 . 3 1 1 . . . 1 1 3 1 2 6 . 4 Swap 144 | . 6 6 3 1 . . 3 2 7 1 5 2 6 2 7 3 1 1 . 6 7 18 15 17 9 16 . . Drop 114 | . 4 17 1 3 . 9 1 1 10 6 8 . 3 . . 7 . 1 1 . . 9 9 9 3 8 . 4 Fire 685 | 29 35 17 3 . . . 14 7 44 . 51 . 57 5 42 14 1 9 . 21 32 86 27 81 22 84 . 4 Melee 392 | . . 9 . . 1 13 11 28 42 23 42 13 25 13 17 30 12 7 . 4 . 4 13 12 11 24 . 38 Ram 2 | . . . . . . . . . . . . . . . . . . . . . . . . . . . . 2 Kick . | . . . . . . . . . . . . . . . . . . . . . . . . . . . . . Crush . | . . . . . . . . . . . . . . . . . . . . . . . . . . . . . Escape Stasis 556 | . . . . . . . 60 . 45 . 46 . 60 15 120 90 . . . . . 29 3 43 30 . . 15 Rewire 43 | . . . . . . . . . . . . . . . 41 . . . . . . . . . 1 1 . . Trap 42 | . . . . . . . . . 42 . . . . . . . . . . . . . . . . . . . Miscellaneous 8 | . . . . . . . . . . . 8 . . . . . . . . . . . . . . . . . Route ------- -11/Scrapyard -10/Materials (discovered 5 exits: *Mat x3 / [*Min] / [*Sub]) -9/Materials (discovered 4 exits: *Mat x3 / *Min) -9/Mines (discovered 4 exits: *Mat x2 / *Exi / [*Zio]) -9/Exiles -8/Mines -8/Materials (discovered 4 exits: *Fac x3 / Gar) -8/Garrison (discovered 3 exits: *Mat x3) -8/Materials (discovered 2 exits: *Fac / Gar) -8/Garrison (discovered 3 exits: *Fac x2 / [*Mat]) -7/Factory (discovered 4 exits: *Fac x2 / [*Low] / Gar) -7/Garrison (discovered 3 exits: *Fac x3) -7/Factory (discovered 2 exits: [*Sto] / Gar) -7/Garrison (discovered 3 exits: *Fac x3) -6/Factory (discovered 3 exits: *Fac / *Low / Gar) -6/Garrison (discovered 3 exits: *Fac x3) -6/Factory (discovered 3 exits: *Fac x2 / *Low) -6/Lower Caves -6/Lower Caves -6/Data Miner -5/Proximity Caves -5/Factory -5/Garrison (discovered 3 exits: *Fac x3) -4/Factory (discovered 2 exits: *Res / Gar) -4/Garrison (discovered 3 exits: *Res x3) -3/Research -3/Armory (discovered 2 exits: *Res / *Lab) -3/Lab -2/Research History --------- Turn | Location | Event 4 | -11/Scrapyard | Discovered new exit (range 16) 239 | -11/Scrapyard | Entered Materials 294 | -10/Materials | Discovered new exit (range 13) 316 | -10/Materials | Build established: Mutant 362 | -10/Materials | Discovered new exit (range 11) 712 | -10/Materials | Discovered new exit (range 5) 905 | -10/Materials | Discovered new exit (range 16) 971 | -10/Materials | Discovered new exit (range 7) 1023 | -10/Materials | Entered another Materials area 1023 | -9/Materials | Evolved 2 slots: Propulsion x1, Weapon x1 1277 | -9/Materials | Discovered new exit (range 9) 1304 | -9/Materials | Discovered new exit (range 8) 1381 | -9/Materials | Discovered new exit (range 14) 1387 | -9/Materials | Identified exit to Mines 1404 | -9/Materials | Central database locked down 1451 | -9/Materials | Entered Mines 1469 | -9/Mines | Found a damaged Exp. Sensor Array with a note attached 1471 | -9/Mines | Found Prototype Device 1490 | -9/Mines | A Derelict revealed a hidden shortcut to a safe place 1513 | -9/Mines | Found a hidden stash of uninstalled traps 1538 | -9/Mines | Learned Materials interactive machine intel 1604 | -9/Mines | Found the Drone Emporium 1605 | -9/Mines | Learned Materials security intel 1606 | -9/Mines | Learned Materials emergency access door positions 1611 | -9/Mines | Discovered new exit (range 4) 1613 | -9/Mines | Discovered new exit (range 9) 1629 | -9/Mines | Discovered new exit (range 11) 1641 | -9/Mines | Entered Exiles 1650 | -9/Exiles | Met 8R-AWN 1656 | -9/Exiles | Met EX-HEX 1665 | -9/Exiles | Met EX-BIN 1669 | -9/Exiles | Aligned with FarCom system 1669 | -9/Exiles | Given EX-Vault access code 1678 | -9/Exiles | Opened EX-Vault 1684 | -9/Exiles | Found Lightpack 2.0 1691 | -9/Exiles | Warned to stay clear of 0b10 Research branches 1701 | -9/Exiles | Met EX-DEC 1715 | -9/Exiles | Discovered new exit (range 14) 1720 | -9/Exiles | Left Exiles lab with Lightpack 2.0 1720 | -9/Exiles | Entered Mines 1726 | -8/Mines | Discovered new exit (range 3) 1739 | -8/Mines | Entered Materials 1739 | -8/Materials | Evolved 2 slots: Propulsion x1, Utility x1 1742 | -8/Materials | Loaded intel: 19 interactive machine locations 1885 | -8/Materials | Identified Exp. Sensor Array 1992 | -8/Materials | Discovered new exit (range 14) 2069 | -8/Materials | Identified exit to Factory 2110 | -8/Materials | Learned Storage stockpile data 2110 | -8/Materials | Identified exit to Garrison 2111 | -8/Materials | Entered Garrison 2175 | -8/Garrison | Rescued a captive Derelict 2188 | -8/Garrison | Build established: Sprinter 2221 | -8/Garrison | Triggered checkpoint 2315 | -8/Garrison | Triggered checkpoint 2440 | -8/Garrison | Installed Relay Interface Framework 2445 | -8/Garrison | Discovered new exit (range 10) 2452 | -8/Garrison | Discovered new exit (range 71) 2452 | -8/Garrison | Discovered new exit (range 35) 2452 | -8/Garrison | Discovered new exit (range 6) 2470 | -8/Garrison | Entered Materials 2470 | -8/Materials | Accompanied by 1 ally 2895 | -8/Materials | Discovered exit to Factory (range 11) 2956 | -8/Materials | Identified exit to Garrison 2956 | -8/Materials | Entered Garrison 3025 | -8/Garrison | Triggered checkpoint 3099 | -8/Garrison | Triggered checkpoint 3114 | -8/Garrison | Triggered checkpoint 3197 | -8/Garrison | Discovered exit to Factory (range 14) 3302 | -8/Garrison | Triggered checkpoint 3398 | -8/Garrison | Triggered checkpoint 3438 | -8/Garrison | Discovered new exit (range 5) 3564 | -8/Garrison | Expanded RIF knowledge: Threat Obfuscation 3566 | -8/Garrison | Discovered exit to Factory (range 13) 3794 | -8/Garrison | Garrison Relay disabled 3820 | -8/Garrison | Entered Factory 3820 | -7/Factory | Evolved 2 slots: Propulsion x1, Utility x1 3923 | -7/Factory | Discovered new exit (range 16) 3959 | -7/Factory | Discovered new exit (range 10) 4149 | -7/Factory | Discovered new exit (range 15) 4150 | -7/Factory | Identified exit to Garrison 4153 | -7/Factory | Entered Garrison 4153 | -7/Garrison | Accompanied by 1 ally 4178 | -7/Garrison | Expanded RIF knowledge: Patrol Navigation 4209 | -7/Garrison | Triggered checkpoint 4412 | -7/Garrison | Triggered checkpoint 4478 | -7/Garrison | Found embedded Infiltrators 4526 | -7/Garrison | Discovered new exit (range 9) 4570 | -7/Garrison | Triggered checkpoint 4751 | -7/Garrison | Triggered checkpoint 4753 | -7/Garrison | Garrison Relay disabled 4761 | -7/Garrison | Discovered new exit (range 13) 4822 | -7/Garrison | Build established: Scavenger-Sprinter 4921 | -7/Garrison | Triggered checkpoint 5028 | -7/Garrison | Discovered new exit (range 15) 5083 | -7/Garrison | Triggered checkpoint 5115 | -7/Garrison | Garrison Relay disabled 5156 | -7/Garrison | Rescued a captive Derelict 5271 | -7/Garrison | Triggered checkpoint 5295 | -7/Garrison | Garrison Relay disabled 5386 | -7/Garrison | Entered Factory 5386 | -7/Factory | Accompanied by 3 allies 5565 | -7/Factory | Repaired Imp. VTOL Module 5637 | -7/Factory | Repaired Cld. VTOL Module 5705 | -7/Factory | Discovered new exit (range 7) 5745 | -7/Factory | Identified exit to Garrison 5797 | -7/Factory | Entered Garrison 5797 | -7/Garrison | Accompanied by 3 allies 5838 | -7/Garrison | Expanded RIF knowledge: Alert ID Control 5993 | -7/Garrison | Triggered checkpoint 6033 | -7/Garrison | Triggered checkpoint 6083 | -7/Garrison | Lost 5 allies 6119 | -7/Garrison | Triggered checkpoint 6122 | -7/Garrison | Build established: Botlord-Sprinter 6162 | -7/Garrison | Lost 4 allies 6179 | -7/Garrison | Discovered new exit (range 11) 6211 | -7/Garrison | Discovered new exit (range 15) 6408 | -7/Garrison | Discovered new exit (range 12) 6410 | -7/Garrison | Discovered new exit (range 65) 6410 | -7/Garrison | Discovered new exit (range 14) 6410 | -7/Garrison | Discovered new exit (range 66) 6413 | -7/Garrison | Triggered checkpoint 6413 | -7/Garrison | Garrison Relay disabled 6628 | -7/Garrison | Garrison Relay disabled 6681 | -7/Garrison | Entered Factory 6681 | -6/Factory | Accompanied by 4 allies 6681 | -6/Factory | Evolved 2 slots: Utility x1, Weapon x1 6861 | -6/Factory | Discovered new exit (range 6) 6951 | -6/Factory | Discovered new exit (range 15) 7156 | -6/Factory | Identified exit to Garrison 7199 | -6/Factory | Entered Garrison 7199 | -6/Garrison | Accompanied by 7 allies 7207 | -6/Garrison | Triggered checkpoint 7207 | -6/Garrison | Triggered checkpoint 7254 | -6/Garrison | Garrison Relay disabled 7274 | -6/Garrison | Lost 3 allies 7300 | -6/Garrison | Expanded RIF knowledge: Robot Detection 7476 | -6/Garrison | Triggered checkpoint 7537 | -6/Garrison | Lost 6 allies 7553 | -6/Garrison | Garrison Relay disabled 7581 | -6/Garrison | Discovered new exit (range 9) 7595 | -6/Garrison | Triggered checkpoint 7654 | -6/Garrison | Discovered new exit (range 8) 7667 | -6/Garrison | Triggered checkpoint 7705 | -6/Garrison | Garrison Relay disabled 7757 | -6/Garrison | Assembled breached garrison interior 7765 | -6/Garrison | Discovered new exit (range 10) 7772 | -6/Garrison | Expanded RIF knowledge: Hotswap 7781 | -6/Garrison | Entered Factory 7785 | -6/Factory | Discovered new exit (range 11) 7812 | -6/Factory | Identified exit to Factory 7879 | -6/Factory | Discovered new exit (range 5) 7880 | -6/Factory | Identified exit to Lower Caves 8104 | -6/Factory | Fabricated Nuclear Pulse Array (x1) 8146 | -6/Factory | Discovered exit to Factory (range 9) 8582 | -6/Factory | Entered Lower Caves 8713 | -6/Lower Caves | Ambushed by wild Derelicts 8856 | -6/Lower Caves | Discovered new exit (range 6) 8857 | -6/Lower Caves | Identified exit to Lower Caves 8857 | -6/Lower Caves | Entered another Lower Caves area 8885 | -6/Lower Caves | Spotted B-75 Beast 8996 | -6/Lower Caves | Learned Factory emergency access door positions 9036 | -6/Lower Caves | Encountered a Warlord checkpoint 9058 | -6/Lower Caves | Discovered new exit (range 8) 9059 | -6/Lower Caves | Identified exit to Data Miner 9088 | -6/Lower Caves | Entered Data Miner 9088 | -6/Data Miner | Accompanied by 2 allies 9089 | -6/Data Miner | Discovered new exit (range 6) 9094 | -6/Data Miner | Met Data Miner 9099 | -6/Data Miner | Learned location of Section 7 (-2) 9099 | -6/Data Miner | Acquired the access code to Warlord's prototype stash 9103 | -6/Data Miner | Received God Mode back door access code from Data Miner 9114 | -6/Data Miner | Identified exit to Proximity Caves 9118 | -6/Data Miner | Entered Proximity Caves 9118 | -5/Proximity Caves | Accompanied by 2 allies 9338 | -5/Proximity Caves | Learned Factory emergency access door positions 9339 | -5/Proximity Caves | Discovered exit to Factory (range 6) 9364 | -5/Proximity Caves | Entered Factory 9364 | -5/Factory | Accompanied by 2 allies 9364 | -5/Factory | Evolved 2 slots: Propulsion x1, Utility x1 9453 | -5/Factory | Repaired Cld. VTOL Module 9647 | -5/Factory | Incoming investigation squad redirected 9846 | -5/Factory | Identified exit to Garrison 9848 | -5/Factory | Entered Garrison 9868 | -5/Garrison | Triggered checkpoint 9872 | -5/Garrison | Garrison Relay disabled 9931 | -5/Garrison | Rescued a captive Derelict 9932 | -5/Garrison | Rescued a captive Derelict 9956 | -5/Garrison | Spotted B-75 Beast 9962 | -5/Garrison | Triggered checkpoint 9964 | -5/Garrison | Triggered checkpoint 9996 | -5/Garrison | Lost 3 parts (2n1w) 10073 | -5/Garrison | Lost 6 allies 10081 | -5/Garrison | Discovered new exit (range 9) 10097 | -5/Garrison | Garrison Relay disabled 10166 | -5/Garrison | Triggered checkpoint 10204 | -5/Garrison | Lost 3 allies 10264 | -5/Garrison | Discovered new exit (range 13) 10288 | -5/Garrison | Expanded RIF knowledge: Command Fork 10401 | -5/Garrison | Lost 7 allies 10433 | -5/Garrison | Found Gamma Bomb Array 10442 | -5/Garrison | Triggered checkpoint 10474 | -5/Garrison | Discovered new exit (range 6) 10506 | -5/Garrison | Triggered checkpoint 10553 | -5/Garrison | Garrison Relay disabled 10572 | -5/Garrison | Triggered checkpoint 10598 | -5/Garrison | Garrison Relay disabled 10614 | -5/Garrison | Entered Factory 10614 | -4/Factory | Evolved 2 slots: Utility x2 10734 | -4/Factory | Discovered new exit (range 6) 10859 | -4/Factory | Repaired Broken Nuclear Pulse Array+ 11253 | -4/Factory | Identified exit to Garrison 11253 | -4/Factory | Entered Garrison 11259 | -4/Garrison | Expanded RIF knowledge: Zone Cloak 11261 | -4/Garrison | Met a derelict Sapper fleeing the area 11264 | -4/Garrison | Phase Generator disabled 11317 | -4/Garrison | Triggered checkpoint 11330 | -4/Garrison | Triggered checkpoint 11337 | -4/Garrison | Triggered checkpoint 11385 | -4/Garrison | Garrison Relay disabled 11437 | -4/Garrison | Spotted B-86 Titan 11567 | -4/Garrison | Destroyed B-86 Titan 11733 | -4/Garrison | Assimilated Heavy ARC 7a with formatsys_deep 11838 | -4/Garrison | Lost 7 allies 11852 | -4/Garrison | Discovered new exit (range 13) 11862 | -4/Garrison | Garrison Relay disabled 11981 | -4/Garrison | Triggered checkpoint 11993 | -4/Garrison | Triggered checkpoint 12089 | -4/Garrison | Rescued a captive Derelict 12091 | -4/Garrison | Garrison Relay disabled 12099 | -4/Garrison | Discovered new exit (range 21) 12115 | -4/Garrison | Triggered checkpoint 12141 | -4/Garrison | Rewired Striker 12144 | -4/Garrison | Rewired Executioner 12228 | -4/Garrison | Spotted B-86 Titan 12234 | -4/Garrison | Discovered new exit (range 10) 12237 | -4/Garrison | Garrison Relay disabled 12288 | -4/Garrison | Garrison Relay disabled 12418 | -4/Garrison | Entered Research 12418 | -3/Research | Accompanied by 7 allies 12418 | -3/Research | Evolved 2 slots: Utility x2 12796 | -3/Research | Garrison activated, responded to threat 12992 | -3/Research | Found Fusion Bomb Launcher 12993 | -3/Research | Found Fusion Bomb Launcher 13028 | -3/Research | Discovered new exit (range 5) 13101 | -3/Research | Found Exp. Core Analyzer 13110 | -3/Research | Lost 5 allies 13132 | -3/Research | Entered Armory 13132 | -3/Armory | Accompanied by 5 allies 13391 | -3/Armory | Lost 3 allies 13590 | -3/Armory | P-80 Master assimilated allied Veteran 8f 13636 | -3/Armory | Incoming investigation squad redirected 13767 | -3/Armory | Lost 4 parts (1n3w) 13767 | -3/Armory | Discovered new exit (range 4) 13806 | -3/Armory | Spotted B-86 Titan 13837 | -3/Armory | Incoming investigation squad redirected 13897 | -3/Armory | Discovered new exit (range 3) 13900 | -3/Armory | Entered Lab 13900 | -3/Lab | Discovered new exit (range 9) 13905 | -3/Lab | Unable to decrypt terminal 13922 | -3/Lab | Entered Research 13922 | -2/Research | Evolved 2 slots: Power x1, Utility x1 13925 | -2/Research | Lost 7 parts (1p5n1u) 14074 | -2/Research | Found Prototype Launcher 14074 | -2/Research | Identified Ragnarok Missile Launcher 14102 | -2/Research | Found Quantum Capacitor 14103 | -2/Research | Found Quantum Capacitor 14164 | -2/Research | Lost 7 parts (2n3u2w) 14345 | -2/Research | Core integrity fell below 50% 14347 | -2/Research | Spotted B-90 Cyclops 14350 | -2/Research | Spotted B-90 Cyclops 14367 | -2/Research | Core integrity fell below 20% 14396 | -2/Research | Lost 7 parts (4n2u1w) 14401 | -2/Research | System corruption reached 10% 14402 | -2/Research | Destroyed by G-73 Enforcer with Phase Gun Last Messages --------------- 14348_ ALERT: Construction progress impeded, dispatching reinforcements to local area. 14361_ W-44 Eye sends out distress signal. 14364_ Slug penetrates Wall. 14364_ Penetrated by Slug. 14365_ Enh. Optical Array destroyed. 14368_ Jacked B-90 Cyclops... >>overwrite_iff Rewriting IFF filter. 14368_ Fabricator disabled. 14372_ K-01 Serf collects debris. 14391_ ALERT: Potential suspicious activity detected, Programmers report to Research Zone 8T. 14396_ Relay Coupler [Grunt] destroyed. 14400_ Detecting nearby Garrison Access. 14400_ Relay Coupler [Sentry] destroyed. 14400_ Relay Coupler [Behemoth] destroyed. 14400_ System corrupted by crushing effect (+3). 14400_ System corrupted by crushing effect (+2). 14401_ O-32 Director: "IFF HANDSHAKE FAILED. SECURING TERMINAL." Map ----- +----------------------------------------------------+ | ?????????????????????????????????????????????????? | | ?????????????????????????????????????????????????? | | ?????????????????????????????????????????????????? | | ?????????????????????????????????????????????????? | | ?????????????????????????????????????????????????? | | ?????????????????????????????????????????????????? | | ?????????????????????????????????????????????????? | | ?????????????????????????????????????????????????? | | ?????????????????????????????????????????????????? | | ?????????????????????????????????????????????????? | | ?????????????????????????????????????????????????? | | ?????????????????????????????????????????????????? | | ?????????????????????????????????????????????????? | | ?????????????????????????????????????????????????? | | ?????????????????????????????????????????????????? | | ?????????????????????????????????????????????????? | | ???????????????????????????????????? ???????????? | | ??????????????????????????????????? ???????????? | | ????????????????????????????????? ??????????? | | ?????##########????????????????? R ??????????? | | ?????# #???????????????? ??????????? | | ?????# #??????????????? ?????????? | | ?????# ###########+### o ?????????? | | ?????# # g "????????? | | ?????# """ + ggb u ?????????? | | ?????# """ # @ "" "?????????????? | | ###### """ # p""" ""G"?????????????? | | # # """ w#########??????????????? | | # # """ #??????????????????????? | | ######+### """ #??????????????????????? | | #?# """ +??????????????????????? | | #?# p #??????????????????????? | | #?# * +??????????????????????? | | #?# #??????????????????????? | | #?# ########### ###??????????????????????? | | #?# #?????????# #????????????????????????? | | #+##+### #?????????# #????????????????????????? | | # +?????????# #????????????????????????? | | # #?????????#+?????????????????????????? | | # #????????????????????????????????????? | | # #????????????????????????????????????? | | ##+##### #????????????????????????????????????? | | # # #????????????????????????????????????? | | # # #????????????????????????????????????? | | # / #????????????????????????????????????? | | # # #??????#?????????????????????????????? | | # ????# #????? +?????????????????????????????? | | ???????# #???? #?????????????????????????????? | | ???????# #??? #?????????????????????????????? | | ??#+#??# #?? #?????????????????????????????? | +----------------------------------------------------+ Best States ------------- Heat Dissipation 65 Energy Generation 19 Energy Capacity 265 Matter Stores 300 Matter Capacity 300 Sight Range 22 Robot Scan Range 15 Terrain Scan Density 10 ECM Strength 1 Jamming Range 12 Armor Coverage 300 Propulsion Shielding 33 Weapon Cycling 15 Evasion (%) 66 Targeting Accuracy 16 Core Analysis 8 Recoil Reduction 6 Matter Filtering 30 Offensive Hacking 14 Defensive Hacking 14 Relay Coupler Types 3 Relay Coupler Value 84 Item Schematics ----------------- Cld. VTOL Module | -8/Materials | Scanalyzed Nuclear Pulse Array | -6/Factory | Hacked Combat Drone Bay | -6/Data Miner | Free Lgt. Regenerative Plating | -6/Data Miner | Free Enh. Armored Leg | -6/Data Miner | Free Imp. Energy Well | -6/Data Miner | Free Ionic Axe | -6/Data Miner | Free Adv. Medium Treads | -6/Data Miner | Free Imp. Force Booster | -6/Data Miner | Free Hardcell Cannon | -6/Data Miner | Free Adv. Target Analyzer | -6/Data Miner | Free Com. HERF Cannon | -6/Data Miner | Free Robot Schematics ------------------ E-15 Imp | -6/Data Miner | Free Y-54 Guardian | -6/Data Miner | Free R-10 Processor | -6/Data Miner | Free P-70 Sage | -6/Data Miner | Free O-32 Director | -6/Data Miner | Free W-44 Eye | -6/Data Miner | Free A-15 Conveyor | -6/Data Miner | Free Fabricated ------------ Nuclear Pulse Array | x1 | -6/Factory Repaired ---------- Imp. VTOL Module | 18% | -7/Factory Cld. VTOL Module | 33% | -7/Factory Cld. VTOL Module | 23% | -5/Factory Nuclear Pulse Array | 24% | -4/Factory | Broken Studied --------- Lgt. Ion Engine | -9/Materials | Hacked Mace | -9/Materials | Hacked Lgt. Deuterium Engine | -7/Factory | Hacked Autogun | -6/Factory | Hacked VTOL Module | -6/Factory | Hacked Mic. Nuclear Core | -6/Factory | Hacked Nuclear Pulse Array | -5/Factory | Hacked Mic. Antimatter Reactor | -2/Research | Hacked Alien Tech Used ----------------- None Achievements -------------- I Know It's In Here Somewhere Challenges ------------ None Game ------ Seed GrenadeLongswordThruster Manual? 0 Play Time 05:18:33 Cumulative 470.4 hours Start 2025.11.29 @ 15:09:04 End 2025.12.06 @ 08:53:18 Sessions 17 Manual Loads 0 Difficulty Rogue Special Mode None Game No. 170 Rogue 149 Adventurer 21 Explorer 0 Win Type - Total 23 Types 13/1/5/1/0/0/0/2/0/1 Lore% 66 Gallery% 76 Achievement% 64 Wizard Run 0 Options --------- Layout 1 ASCII 0 Keyboard 0 Movement Mouse Keybinds 0 Fullscreen 2 Font 32/SmallcapsGlow Map View 77x35 Zoom Use 0% Tactical HUD 1 Map Filters NONE Filters NONE Steam 1 RUN: 3d8512fa-f5f8-42a4-b9cd-6b7fc24c8a97